[Event "FIDE Open Sachove Univerzity QCC"]
[Site "Ceske Budejovice"]
[Date "2020.07.04"]
[Round "4.13"]
[White "Macho, Miloslav"]
[Black "Kroulik, Vaclav"]
[Result "1/2-1/2"]
[ECO "A07"]
[WhiteElo "1671"]
[BlackElo "1442"]
[Annotator "NA"]
[PlyCount "64"]
[EventDate "2020.07.01"]
[EventType "swiss"]
[EventCountry "CZE"]
[SourceTitle "playchess.com"]
[Source "ChessBase"]
[SourceQuality "1"]
[TimeControl "40/5400+30:1800+30"]

1. g3 {[%emt 0:00:47]} d5 {[%emt 0:00:10]} 2. Bg2 {[%emt 0:00:22]} e5 {[%emt 0:00:10]} 3. d3 {[%emt 0:00:15]} Nf6 {[%emt 0:00:14]} 4. Nf3 {[%emt 0:00:48]} Nbd7 {[%emt 0:01:20]} 5. O-O {[%emt 0:00:32]} Be7 {[%emt 0:01:02]} 6. b3 {[%emt 0:02:50]} O-O {[%emt 0:01:42]} 7. Bb2 {[%emt 0:00:05]} d4 {[%emt 0:01:07]} 8. c3 {[%emt 0:01:34]} c5 {[%emt 0:01:21]} 9. Nbd2 {[%emt 0:01:31]} Nd5 {[%emt 0:01:59]} 10. cxd4 {[%emt 0:00:57]} cxd4 {[%emt 0:06:48]} 11. Nxd4 {[%emt 0:00:55]} Nb4 {[%emt 0:00:59]} 12. N4f3 {[%emt 0:02:45]} f6 {[%emt 0:02:06]} 13. a3 {[%emt 0:04:26]} Nc6 {[%emt 0:01:06]} 14. b4 {[%emt 0:00:29]} Nb6 {[%emt 0:01:24]} 15. Qb3+ {[%emt 0:07:46]} Kh8 {[%emt 0:00:40]} 16. Rfc1 {[%emt 0:00:59]} Re8 {[%emt 0:04:58]} 17. Qd1 {[%emt 0:02:41]} Be6 {[%emt 0:02:05]} 18. Ne4 {[%emt 0:04:34]} Rc8 {[%emt 0:03:51]} 19. Nc5 {[%emt 0:00:37]} Bxc5 {[%emt 0:00:17]} 20. Rxc5 {[%emt 0:00:42]} Re7 {[%emt 0:03:43]} 21. Nd2 {[%emt 0:04:15]} Rec7 {[%emt 0:04:04]} 22. Rac1 {[%emt 0:03:26]} Nd7 {[%emt 0:04:11]} 23. R5c3 {[%emt 0:02:57]} Nb6 {[%emt 0:08:38]} 24. Ne4 {[%emt 0:10:44]} Nd5 {[%emt 0:08:12]} 25. Rc4 {[%emt 0:12:57]} Nb6 {[%emt 0:03:01]} 26. Rc5 {[%emt 0:02:01]} Bd5 {[%emt 0:06:33]} 27. b5 {[%emt 0:03:11]} Na5 {[%emt 0:02:27]} 28. Rxc7 {[%emt 0:00:17]} Rxc7 {[%emt 0:00:12]} 29. Rxc7 {[%emt 0:03:02]} Qxc7 {[%emt 0:02:28]} 30. Qc1 {[%emt 0:00:27]} Qd8 {[%emt 0:11:12]} 31. Nd2 {[%emt 0:06:05]} Bxg2 {[%emt 0:02:44]} 32. Kxg2 {[%emt 0:00:05]} Qd5+ {[%emt 0:00:09]} 1/2-1/2

[Event "FIDE Open Sachove Univerzity QCC"]
[Site "Ceske Budejovice"]
[Date "2020.07.04"]
[Round "4.14"]
[White "Svadlenka, Michal"]
[Black "Kanka, Lukas"]
[Result "1-0"]
[ECO "B02"]
[WhiteElo "1395"]
[BlackElo "1667"]
[Annotator "NA"]
[PlyCount "65"]
[EventDate "2020.07.01"]
[EventType "swiss"]
[EventCountry "CZE"]
[SourceTitle "playchess.com"]
[Source "ChessBase"]
[SourceQuality "1"]
[TimeControl "40/5400+30:1800+30"]

1. e4 {[%emt 0:00:00]} Nf6 {[%emt 0:00:00]} 2. e5 {[%emt 0:00:19]} Nd5 {[%emt 0:00:00]} 3. c4 {[%emt 0:00:41]} Nb6 {[%emt 0:00:00]} 4. Nc3 {[%emt 0:01:40]} Nc6 {[%emt 0:00:04]} 5. c5 {[%emt 0:00:28]} Nxe5 {[%emt 0:01:33]} 6. cxb6 {[%emt 0:00:20]} axb6 {[%emt 0:00:28]} 7. d4 {[%emt 0:00:39]} Ng6 {[%emt 0:01:07]} 8. Nf3 {[%emt 0:01:55]} d5 {[%emt 0:01:32]} 9. h3 {[%emt 0:06:11]} e6 {[%emt 0:01:15]} 10. a3 {[%emt 0:01:41]} c5 {[%emt 0:00:46]} 11. Bb5+ {[%emt 0:02:18]} Bd7 {[%emt 0:02:34]} 12. Bxd7+ {[%emt 0:02:03]} Qxd7 {[%emt 0:00:11]} 13. O-O {[%emt 0:03:47]} Bd6 {[%emt 0:02:36]} 14. Re1 {[%emt 0:03:06]} O-O {[%emt 0:02:04]} 15. Be3 {[%emt 0:03:10]} Rfd8 {[%emt 0:05:05]} 16. Rc1 {[%emt 0:02:56]} Ra6 {[%emt 0:05:42]} 17. Na2 {[%emt 0:03:32]} c4 {[%emt 0:01:35]} 18. Bg5 {[%emt 0:04:14]} f6 {[%emt 0:02:46]} 19. Be3 {[%emt 0:02:58]} b5 {[%emt 0:04:15]} 20. Bd2 {[%emt 0:02:34]} Nf4 {[%emt 0:07:33]} 21. Bxf4 {[%emt 0:05:45]} Bxf4 {[%emt 0:00:06]} 22. Nb4 {[%emt 0:01:02]} Ra4 {[%emt 0:06:12]} 23. Rc3 {[%emt 0:05:14]} Bd6 {[%emt 0:03:27]} 24. Nc2 {[%emt 0:07:23]} Bc7 {[%emt 0:07:00]} 25. Rce3 {[%emt 0:01:26]} Re8 {[%emt 0:09:15]} 26. Qe2 {[%emt 0:03:18]} Kf7 {[%emt 0:02:01]} 27. Nd2 {[%emt 0:14:19]} Qd6 {[%emt 0:08:03]} 28. Rg3 {[%emt 0:03:36]} Ba5 {[%emt 0:05:38]} 29. Qh5+ {[%emt 0:02:59]} Ke7 {[%emt 0:03:45]} 30. Rxg7+ {[%emt 0:01:18]} Kd8 {[%emt 0:00:07]} 31. Qh6 {[%emt 0:01:01]} Qf8 {[%emt 0:01:16]} 32. Re2 {[%emt 0:03:50]} e5 {[%emt 0:07:13]} 33. dxe5 {[%emt 0:03:40]} 1-0

[Event "FIDE Open Sachove Univerzity QCC"]
[Site "Ceske Budejovice"]
[Date "2020.07.04"]
[Round "4.15"]
[White "Svadlenka, Dominik"]
[Black "Josko, Jiri"]
[Result "1/2-1/2"]
[ECO "A52"]
[WhiteElo "1350"]
[BlackElo "1649"]
[Annotator "NA"]
[PlyCount "85"]
[EventDate "2020.07.01"]
[EventType "swiss"]
[EventCountry "CZE"]
[SourceTitle "playchess.com"]
[Source "ChessBase"]
[SourceQuality "1"]
[TimeControl "40/5400+30:1800+30"]

1. d4 {[%emt 0:00:00]} Nf6 {[%emt 0:00:00]} 2. c4 {[%emt 0:00:00]} e5 {[%emt 0:00:21]} 3. dxe5 {[%emt 0:00:53]} Ng4 {[%emt 0:00:24]} 4. Nf3 {[%emt 0:00:38]} Nc6 {[%emt 0:00:24]} 5. Bg5 {[%emt 0:00:29]} Be7 {[%emt 0:00:29]} 6. Bxe7 {[%emt 0:00:10]} Qxe7 {[%emt 0:00:10]} 7. Nc3 {[%emt 0:04:02]} Ngxe5 {[%emt 0:00:34]} 8. Nxe5 {[%emt 0:04:21]} Nxe5 {[%emt 0:01:04]} 9. e3 {[%emt 0:02:45]} d6 {[%emt 0:00:48]} 10. Be2 {[%emt 0:02:07]} Be6 {[%emt 0:00:52]} 11. Qb3 {[%emt 0:02:19]} O-O {[%emt 0:10:34]} 12. O-O {[%emt 0:06:28]} c6 {[%emt 0:02:40]} 13. h3 {[%emt 0:08:51]} b5 {[%emt 0:01:56]} 14. Rac1 {[%emt 0:05:20]} Nxc4 {[%emt 0:07:22]} 15. Qc2 {[%emt 0:03:15]} d5 {[%emt 0:08:25]} 16. Bf3 {[%emt 0:00:59]} Ne5 {[%emt 0:02:51]} 17. Be2 {[%emt 0:00:18]} g6 {[%emt 0:07:43]} 18. e4 {[%emt 0:02:17]} d4 {[%emt 0:08:35]} 19. Nb1 {[%emt 0:01:42]} Rad8 {[%emt 0:06:34]} 20. Qc5 {[%emt 0:01:50]} Qxc5 {[%emt 0:08:24]} 21. Rxc5 {[%emt 0:00:12]} d3 {[%emt 0:02:00]} 22. Bd1 {[%emt 0:01:01]} Nc4 {[%emt 0:03:34]} 23. b3 {[%emt 0:00:38]} Nb2 {[%emt 0:02:16]} 24. Nd2 {[%emt 0:01:34]} Nxd1 {[%emt 0:09:49]} 25. Rxd1 {[%emt 0:00:35]} a5 {[%emt 0:00:40]} 26. Rxc6 {[%emt 0:02:12]} a4 {[%emt 0:01:53]} 27. Rc5 {[%emt 0:04:55]} Rb8 {[%emt 0:01:43]} 28. Rc3 {[%emt 0:01:23]} Rfd8 {[%emt 0:00:31]} 29. Nf3 {[%emt 0:00:21]} f5 {[%emt 0:01:27]} 30. e5 {[%emt 0:00:25]} axb3 {[%emt 0:01:21]} 31. axb3 {[%emt 0:00:18]} Ra8 {[%emt 0:00:53]} 32. Rdxd3 {[%emt 0:00:54]} Ra1+ {[%emt 0:00:34]} 33. Kh2 {[%emt 0:00:33]} Rda8 {[%emt 0:01:32]} 34. Nd4 {[%emt 0:00:50]} b4 {[%emt 0:00:52]} 35. Rc7 {[%emt 0:00:37]} Rd8 {[%emt 0:01:26]} 36. Rd2 {[%emt 0:03:52]} Rb1 {[%emt 0:01:39]} 37. Rcc2 {[%emt 0:00:59]} Bf7 {[%emt 0:04:08]} 38. e6 {[%emt 0:03:10]} Be8 {[%emt 0:00:12]} 39. Nc6 {[%emt 0:00:41]} Rxd2 {[%emt 0:00:39]} 40. Rxd2 {[%emt 0:03:51]} Bxc6 {[%emt 0:00:32]} 41. Rd8+ {[%emt 0:30:26]} Kg7 {[%emt 0:30:31]} 42. Rc8 {[%emt 0:00:11]} Bb5 {[%emt 0:00:00]} 43. Rb8 {[%emt 0:00:00]} 1/2-1/2

[Event "FIDE Open Sachove Univerzity QCC"]
[Site "Ceske Budejovice"]
[Date "2020.07.04"]
[Round "4.16"]
[White "Dobsa, Emma"]
[Black "Kaucky, Jaroslav"]
[Result "1-0"]
[ECO "C50"]
[WhiteElo "1345"]
[BlackElo "1573"]
[Annotator "NA"]
[PlyCount "73"]
[EventDate "2020.07.01"]
[EventType "swiss"]
[EventCountry "CZE"]
[SourceTitle "playchess.com"]
[Source "ChessBase"]
[SourceQuality "1"]
[TimeControl "40/5400+30:1800+30"]

1. e4 {[%emt 0:00:00]} e5 {[%emt 0:00:00]} 2. Nf3 {[%emt 0:00:00]} Nc6 {[%emt 0:00:00]} 3. Bc4 {[%emt 0:00:00]} Nd4 {[%emt 0:00:01]} 4. Nxd4 {[%emt 0:00:00]} exd4 {[%emt 0:00:14]} 5. O-O {[%emt 0:00:00]} d6 {[%emt 0:03:13]} 6. d3 {[%emt 0:00:59]} Nf6 {[%emt 0:00:25]} 7. f4 {[%emt 0:02:09]} Ng4 {[%emt 0:03:14]} 8. f5 {[%emt 0:01:41]} h5 {[%emt 0:00:36]} 9. h3 {[%emt 0:06:14]} Qh4 {[%emt 0:01:51]} 10. Rf4 {[%emt 0:11:14]} Qg3 {[%emt 0:01:01]} 11. hxg4 {[%emt 0:02:59]} hxg4 {[%emt 0:00:17]} 12. Rxg4 {[%emt 0:00:38]} Qh2+ {[%emt 0:00:25]} 13. Kf2 {[%emt 0:01:30]} Be7 {[%emt 0:01:11]} 14. Bf4 {[%emt 0:01:37]} Qh7 {[%emt 0:02:10]} 15. Nd2 {[%emt 0:01:46]} g6 {[%emt 0:01:20]} 16. Nf3 {[%emt 0:07:43]} gxf5 {[%emt 0:00:23]} 17. exf5 {[%emt 0:01:23]} Bxf5 {[%emt 0:01:32]} 18. Rg3 {[%emt 0:02:04]} O-O-O {[%emt 0:01:24]} 19. Bg5 {[%emt 0:02:28]} f6 {[%emt 0:02:58]} 20. Bf4 {[%emt 0:01:35]} d5 {[%emt 0:01:02]} 21. Bb3 {[%emt 0:04:32]} c5 {[%emt 0:01:43]} 22. Qd2 {[%emt 0:02:39]} b6 {[%emt 0:04:37]} 23. a4 {[%emt 0:02:23]} Be6 {[%emt 0:22:18]} 24. Re1 {[%emt 0:01:27]} Qf7 {[%emt 0:01:10]} 25. Qe2 {[%emt 0:01:39]} Kd7 {[%emt 0:03:02]} 26. a5 {[%emt 0:01:14]} b5 {[%emt 0:00:37]} 27. a6 {[%emt 0:04:41]} Rc8 {[%emt 0:02:35]} 28. c3 {[%emt 0:04:46]} c4 {[%emt 0:05:06]} 29. Nxd4 {[%emt 0:03:22]} Bc5 {[%emt 0:02:00]} 30. dxc4 {[%emt 0:02:35]} Bxd4+ {[%emt 0:02:30]} 31. cxd4 {[%emt 0:00:12]} dxc4 {[%emt 0:01:41]} 32. Bc2 {[%emt 0:00:35]} Rc6 {[%emt 0:04:56]} 33. Bg6 {[%emt 0:01:54]} Qf8 {[%emt 0:02:06]} 34. Re3 {[%emt 0:01:01]} Qe7 {[%emt 0:00:51]} 35. d5 {[%emt 0:00:47]} Qc5 {[%emt 0:01:19]} 36. dxc6+ {[%emt 0:00:27]} Kxc6 {[%emt 0:00:19]} 37. Kg3 {[%emt 0:02:11]} 1-0

[Event "FIDE Open Sachove Univerzity QCC"]
[Site "Ceske Budejovice"]
[Date "2020.07.04"]
[Round "4.17"]
[White "Hlavsa, Filip"]
[Black "Havelkova, Beata"]
[Result "1-0"]
[ECO "B25"]
[WhiteElo "1886"]
[BlackElo "1394"]
[Annotator "NA"]
[PlyCount "71"]
[EventDate "2020.07.01"]
[EventType "swiss"]
[EventCountry "CZE"]
[SourceTitle "playchess.com"]
[Source "ChessBase"]
[SourceQuality "1"]
[TimeControl "40/5400+30:1800+30"]

1. e4 {[%emt 0:00:00]} c5 {[%emt 0:00:00]} 2. Nc3 {[%emt 0:00:03]} Nc6 {[%emt 0:02:31]} 3. f4 {[%emt 0:00:56]} d6 {[%emt 0:01:02]} 4. Nf3 {[%emt 0:00:23]} e6 {[%emt 0:03:11]} 5. g3 {[%emt 0:07:01]} g6 {[%emt 0:02:23]} 6. Bg2 {[%emt 0:01:46]} Bg7 {[%emt 0:00:46]} 7. d3 {[%emt 0:00:12]} Nge7 {[%emt 0:00:49]} 8. Be3 {[%emt 0:01:55]} Rb8 {[%emt 0:04:17] B25: Closed Sicilian: 3 g3, lines without early Be3.} 9. d4 {[%emt 0:04:18]} cxd4 {[%emt 0:02:18]} 10. Nxd4 {[%emt 0:00:07]} a6 {[%emt 0:11:10]} 11. Qd2 {[%emt 0:03:10]} O-O {[%emt 0:03:11] [#]} 12. O-O-O $146 {[%emt 0:00:54]} ({Predecessor:} 12. O-O Qc7 13. Kh1 Na5 14. b3 b5 15. Rad1 Rd8 16. Nce2 Nb7 17. Rc1 d5 18. e5 Na5 19. c3 Bb7 20. Bh3 {1-0 (62) Desjardins,M (1935)-Lalumiere,C (1985) Montreal 2011}) 12... d5 {[%emt 0:07:23]} 13. exd5 {[%emt 0:02:05]} exd5 {[%emt 0:01:46]} 14. Nb3 {[%emt 0:03:28]} Bg4 {[%emt 0:01:22]} 15. Ne2 {[%emt 0:02:16]} Re8 {[%emt 0:06:38]} 16. Rde1 {[%emt 0:01:59]} Nf5 {[%emt 0:05:24]} ({Better is} 16... a5 $17 17. c3 a4) 17. Bf2 {[%emt 0:03:02]} Bxe2 {[%emt 0:06:56]} ({Reject} 17... Qf6 18. Nc3 $11) 18. Rxe2 {[%emt 0:00:20]} Rxe2 {[%emt 0:02:24]} 19. Qxe2 {[%emt 0:00:08]} d4 {[%emt 0:03:28]} 20. g4 {[%emt 0:02:16]} Nfe7 {[%emt 0:01:37]} 21. Rd1 $16 {[%emt 0:02:53]} Qc7 {[%emt 0:03:09]} 22. Qe4 {[%emt 0:02:21]} f5 {[%emt 0:06:07]} 23. Qe6+ {[%emt 0:06:21]} Kh8 {[%emt 0:00:31]} 24. Bg3 {[%emt 0:13:02]} Nb4 {[%emt 0:02:24]} 25. Rd2 {[%emt 0:07:44]} Rc8 {[%emt 0:03:27]} 26. Na1 {[%emt 0:04:38]} d3 {[%emt 0:00:52]} 27. Qb3 {[%emt 0:00:54]} dxc2 {[%emt 0:02:53]} 28. Qxb4 {[%emt 0:00:56]} Nc6 {[%emt 0:05:58]} 29. Bxc6 {[%emt 0:03:45]} Qxc6 {[%emt 0:00:11]} 30. Rxc2 {[%emt 0:00:07]} Qd7 {[%emt 0:02:10]} 31. g5 {[%emt 0:01:42]} Rd8 {[%emt 0:00:54]} 32. Qd2 {[%emt 0:03:36]} Qe8 {[%emt 0:01:20]} 33. Qe2 {[%emt 0:00:37]} Qa4 {[%emt 0:01:23]} 34. a3 {[%emt 0:02:32]} Re8 {[%emt 0:01:08]} 35. Qc4 {[%emt 0:01:38]} Qd7 {[%emt 0:00:57]} 36. Nb3 {[%emt 0:01:05]} 1-0

[Event "FIDE Open Sachove Univerzity QCC"]
[Site "Ceske Budejovice"]
[Date "2020.07.04"]
[Round "4.19"]
[White "Bastyr, Pavel"]
[Black "Valasek, Jakub"]
[Result "1/2-1/2"]
[ECO "D60"]
[WhiteElo "1439"]
[BlackElo "1688"]
[Annotator "NA"]
[PlyCount "53"]
[EventDate "2020.07.01"]
[EventType "swiss"]
[EventCountry "CZE"]
[SourceTitle "playchess.com"]
[Source "ChessBase"]
[SourceQuality "1"]
[TimeControl "40/5400+30:1800+30"]

1. d4 {[%emt 0:00:15]} d5 {[%emt 0:00:00]} 2. c4 {[%emt 0:00:06]} e6 {[%emt 0:00:27]} 3. Nc3 {[%emt 0:00:06]} Nf6 {[%emt 0:00:43]} 4. Bg5 {[%emt 0:00:09]} Nbd7 {[%emt 0:00:50]} 5. e3 {[%emt 0:00:11]} Be7 {[%emt 0:00:51]} 6. Nf3 {[%emt 0:00:05]} O-O {[%emt 0:01:13]} 7. Bd3 {[%emt 0:00:04]} c6 {[%emt 0:01:30]} 8. O-O {[%emt 0:00:08]} dxc4 {[%emt 0:01:49]} 9. Bxc4 {[%emt 0:00:12]} Nd5 {[%emt 0:01:11]} 10. Bxe7 {[%emt 0:02:41]} Qxe7 {[%emt 0:00:38]} 11. e4 {[%emt 0:02:49]} Nxc3 {[%emt 0:03:04]} 12. bxc3 {[%emt 0:00:07]} e5 {[%emt 0:03:54]} 13. Bd3 {[%emt 0:02:17]} exd4 {[%emt 0:02:09]} 14. cxd4 {[%emt 0:01:40]} Nb6 {[%emt 0:01:39]} 15. Re1 {[%emt 0:00:18]} Bg4 {[%emt 0:02:05]} 16. h3 {[%emt 0:00:06]} Bh5 {[%emt 0:02:36]} 17. Re3 {[%emt 0:04:38]} Bg6 {[%emt 0:03:38]} 18. Ne5 {[%emt 0:01:01]} Nd7 {[%emt 0:03:22]} 19. Nxg6 {[%emt 0:01:29]} hxg6 {[%emt 0:00:59]} 20. Qb3 {[%emt 0:06:45]} Rab8 {[%emt 0:04:08]} 21. e5 {[%emt 0:01:52]} Nb6 {[%emt 0:03:42]} 22. e6 {[%emt 0:05:37]} Nd5 {[%emt 0:03:11]} 23. exf7+ {[%emt 0:00:17]} Qxf7 {[%emt 0:00:22]} 24. Rf3 {[%emt 0:00:11]} Qe8 {[%emt 0:05:19]} 25. Re3 {[%emt 0:11:28]} Qf7 {[%emt 0:02:07]} 26. Rf3 {[%emt 0:00:04]} Qe8 {[%emt 0:01:11]} 27. Re3 {[%emt 0:00:10]} 1/2-1/2

[Event "FIDE Open Sachove Univerzity QCC"]
[Site "Ceske Budejovice"]
[Date "2020.07.10"]
[Round "4.20"]
[White "Zezula, Jakub"]
[Black "Cipera, Josef"]
[Result "0-1"]
[ECO "B41"]
[WhiteElo "1449"]
[BlackElo "1612"]
[Annotator "NA RC"]
[PlyCount "86"]
[EventDate "2020.07.01"]
[EventType "swiss"]
[EventCountry "CZE"]
[TimeControl "40/5400+30:1800+30"]

1. e4 {[%emt 0:00:00]} c5 {[%emt 0:00:00]} 2. Nf3 {[%emt 0:00:00]} a6 {[%emt 0:00:00]} 3. d4 {[%emt 0:00:09]} cxd4 {[%emt 0:00:00]} 4. Nxd4 {[%emt 0:00:06]} d6 {[%emt 0:00:09]} 5. c4 {[%emt 0:01:35]} Nf6 {[%emt 0:01:33]} 6. Nc3 {[%emt 0:00:23]} e6 {[%emt 0:01:30]} 7. Be3 {[%emt 0:01:23]} Be7 {[%emt 0:04:54]} 8. Be2 {[%emt 0:03:56]} Nbd7 {[%emt 0:02:51]} 9. O-O {[%emt 0:04:38]} O-O {[%emt 0:03:35]} 10. Qd2 {[%emt 0:04:18]} Nc5 {[%emt 0:02:30]} 11. f3 {[%emt 0:03:00]} Qc7 {[%emt 0:09:32]} 12. Rac1 {[%emt 0:07:39]} b6 {[%emt 0:02:34]} 13. b3 {[%emt 0:07:58]} Bb7 {[%emt 0:00:36]} 14. Bg5 {[%emt 0:04:37]} Qd8 {[%emt 0:10:17]} 15. Rfd1 {[%emt 0:10:37]} Ne8 {[%emt 0:02:25]} 16. Bxe7 {[%emt 0:03:37]} Qxe7 {[%emt 0:00:11]} 17. Nc2 {[%emt 0:02:26]} Rd8 {[%emt 0:08:57]} 18. e5 {[%emt 0:07:54]} Ba8 {[%emt 0:08:32]} 19. b4 {[%emt 0:01:20]} Nb7 {[%emt 0:00:10]} 20. Qe3 {[%emt 0:04:02]} dxe5 {[%emt 0:05:08]} 21. Qxb6 {[%emt 0:02:26]} Nf6 {[%emt 0:03:44]} 22. Qxa6 {[%emt 0:01:33]} Nd6 {[%emt 0:05:00]} 23. c5 {[%emt 0:01:26]} Nf5 {[%emt 0:01:06]} 24. Rxd8 {[%emt 0:02:43]} Rxd8 {[%emt 0:00:24]} 25. Rd1 {[%emt 0:00:13]} Nd4 {[%emt 0:01:32]} 26. Nxd4 {[%emt 0:01:03]} exd4 {[%emt 0:00:23]} 27. Nb5 {[%emt 0:00:26]} e5 {[%emt 0:02:59]} 28. c6 {[%emt 0:01:26]} Nd5 {[%emt 0:01:59]} 29. c7 {[%emt 0:01:32]} Nxc7 {[%emt 0:00:59]} 30. Nxc7 {[%emt 0:00:10]} Qxc7 {[%emt 0:00:14]} 31. b5 {[%emt 0:01:18]} Rb8 {[%emt 0:04:34]} 32. a4 {[%emt 0:01:57]} Qc5 {[%emt 0:01:46]} 33. Kf1 {[%emt 0:01:53]} e4 {[%emt 0:01:09]} 34. fxe4 {[%emt 0:02:08]} Bxe4 {[%emt 0:00:13]} 35. Bf3 {[%emt 0:06:33]} Ra8 {[%emt 0:00:14]} 36. Qxa8+ {[%emt 0:00:06]} Bxa8 {[%emt 0:00:12]} 37. Bxa8 {[%emt 0:00:05]} Qc4+ {[%emt 0:01:58]} 38. Ke1 {[%emt 0:01:24]} Qxa4 {[%emt 0:04:50]} 39. Bc6 {[%emt 0:00:16]} Qb4+ {[%emt 0:00:29]} 40. Ke2 {[%emt 0:00:28]} Qe7+ {[%emt 0:01:00]} 41. Kd3 {[%emt 0:32:35]} Qe3+ {[%emt 0:30:12]} 42. Kc2 {[%emt 0:02:28]} Qc3+ {[%emt 0:00:22]} 43. Kb1 {[%emt 0:00:15]} d3 {[%emt 0:01:58]} 0-1

[Event "FIDE Open Sachove Univerzity QCC"]
[Site "Ceske Budejovice"]
[Date "2020.07.09"]
[Round "4.21"]
[White "Jodas, Daniel"]
[Black "Dudkova, Josefina"]
[Result "0-1"]
[ECO "D05"]
[WhiteElo "1608"]
[BlackElo "1447"]
[Annotator "NA"]
[PlyCount "79"]
[EventDate "2020.07.01"]
[EventType "swiss"]
[EventCountry "CZE"]
[TimeControl "40/5400+30:1800+30"]

1. d4 {[%emt 0:00:00]} Nf6 {[%emt 0:00:00]} 2. Nf3 {[%emt 0:00:00]} d5 {[%emt 0:00:36]} 3. e3 {[%emt 0:00:20]} e6 {[%emt 0:04:14]} 4. Bd3 {[%emt 0:00:55]} c5 {[%emt 0:01:20]} 5. c3 {[%emt 0:00:17]} Nc6 {[%emt 0:02:07]} 6. Nbd2 {[%emt 0:01:26]} Bd6 {[%emt 0:05:37]} 7. O-O {[%emt 0:05:56]} O-O {[%emt 0:00:27]} 8. dxc5 {[%emt 0:00:58]} Bxc5 {[%emt 0:00:39]} 9. Qe2 {[%emt 0:00:55]} e5 {[%emt 0:07:49]} 10. e4 {[%emt 0:07:10]} d4 {[%emt 0:08:53]} 11. cxd4 {[%emt 0:05:28]} Nxd4 {[%emt 0:01:25]} 12. Nxd4 {[%emt 0:00:09]} Bxd4 {[%emt 0:00:22]} 13. Kh1 {[%emt 0:08:16]} Be6 {[%emt 0:09:53]} 14. Nc4 {[%emt 0:12:58]} h6 {[%emt 0:04:50]} 15. h3 {[%emt 0:00:39]} Rc8 {[%emt 0:00:49]} 16. f4 {[%emt 0:16:09]} exf4 {[%emt 0:13:36]} 17. Bxf4 {[%emt 0:08:28]} Bxc4 {[%emt 0:08:03]} 18. Bxc4 {[%emt 0:03:23]} Qe7 {[%emt 0:03:06]} 19. e5 {[%emt 0:14:26]} Nh7 {[%emt 0:10:43]} 20. e6 {[%emt 0:02:53]} Bc5 {[%emt 0:03:20]} 21. exf7+ {[%emt 0:01:01]} Kh8 {[%emt 0:00:29]} 22. Qxe7 {[%emt 0:01:19]} Bxe7 {[%emt 0:00:14]} 23. Bb3 {[%emt 0:00:59]} Ng5 {[%emt 0:06:23]} 24. Bh2 {[%emt 0:03:36]} Rcd8 {[%emt 0:02:10]} 25. h4 {[%emt 0:00:41]} Nh7 {[%emt 0:01:13]} 26. Bg3 {[%emt 0:03:01]} Bf6 {[%emt 0:00:57]} 27. Rf2 {[%emt 0:01:31]} b5 {[%emt 0:01:52]} 28. Rc1 {[%emt 0:00:06]} Rd7 {[%emt 0:00:40]} 29. Re1 {[%emt 0:00:31]} Rdd8 {[%emt 0:00:20]} 30. Rc1 {[%emt 0:00:53]} Rd7 {[%emt 0:00:23]} 31. Rc7 {[%emt 0:00:09]} Rxc7 {[%emt 0:00:17]} 32. Bxc7 {[%emt 0:00:02]} Bxh4 {[%emt 0:01:00]} 33. Bd6 {[%emt 0:00:28]} Bxf2 {[%emt 0:00:15]} 34. Bxf8 {[%emt 0:01:22]} Nxf8 {[%emt 0:00:02]} 35. Bd5 {[%emt 0:00:29]} Kh7 {[%emt 0:00:41]} 36. Kh2 {[%emt 0:00:10]} Kg6 {[%emt 0:00:18]} 37. g3 {[%emt 0:00:28]} Bc5 {[%emt 0:00:23]} 38. Kg2 {[%emt 0:00:09]} b4 {[%emt 0:00:54]} 39. Kf3 {[%emt 0:01:01]} Nd7 {[%emt 0:00:30]} 40. Ke4 {[%emt 0:00:46]} 0-1

[Event "FIDE Open Sachove Univerzity QCC"]
[Site "Ceske Budejovice"]
[Date "2020.07.04"]
[Round "4.22"]
[White "Dobsinsky, Petr"]
[Black "Tajovsky, Simon"]
[Result "0-1"]
[ECO "A17"]
[WhiteElo "1248"]
[BlackElo "1594"]
[Annotator "NA"]
[PlyCount "92"]
[EventDate "2020.07.01"]
[EventType "swiss"]
[EventCountry "CZE"]
[SourceTitle "playchess.com"]
[Source "ChessBase"]
[SourceQuality "1"]
[TimeControl "40/5400+30:1800+30"]

1. Nf3 {[%emt 0:00:00]} d5 {[%emt 0:01:06]} 2. e3 {[%emt 0:00:04]} Nf6 {[%emt 0:01:03]} 3. c4 {[%emt 0:00:30]} e6 {[%emt 0:00:43]} 4. Nc3 {[%emt 0:00:19]} c5 {[%emt 0:01:09]} 5. b3 {[%emt 0:01:03]} Nc6 {[%emt 0:01:23]} 6. Bb2 {[%emt 0:01:14]} Bd6 {[%emt 0:02:11]} 7. d4 {[%emt 0:01:15]} O-O {[%emt 0:03:15]} 8. cxd5 {[%emt 0:00:41]} exd5 {[%emt 0:00:42]} 9. dxc5 {[%emt 0:00:45]} Bxc5 {[%emt 0:00:14]} 10. Bd3 {[%emt 0:01:56]} Bg4 {[%emt 0:01:06]} 11. h3 {[%emt 0:01:39]} Bh5 {[%emt 0:00:45]} 12. g4 {[%emt 0:00:19]} Bg6 {[%emt 0:00:50]} 13. Bxg6 {[%emt 0:00:17]} hxg6 {[%emt 0:00:08]} 14. g5 {[%emt 0:01:11]} Ne4 {[%emt 0:02:59]} 15. Qxd5 {[%emt 0:02:04]} Qxd5 {[%emt 0:03:03]} 16. Nxd5 {[%emt 0:00:22]} Rad8 {[%emt 0:02:15]} 17. Rd1 {[%emt 0:01:27]} Nb4 {[%emt 0:02:47]} 18. Nxb4 {[%emt 0:04:09]} Rxd1+ {[%emt 0:00:17]} 19. Kxd1 {[%emt 0:00:30]} Nxf2+ {[%emt 0:00:12]} 20. Ke2 {[%emt 0:02:12]} Nxh1 {[%emt 0:00:12]} 21. Nd3 {[%emt 0:01:13]} Ng3+ {[%emt 0:01:14]} 22. Kf2 {[%emt 0:02:56]} Ne4+ {[%emt 0:00:26]} 23. Ke2 {[%emt 0:01:20]} Bb6 {[%emt 0:02:44]} 24. h4 {[%emt 0:05:07]} Rc8 {[%emt 0:03:21]} 25. Bd4 {[%emt 0:02:55]} Nc3+ {[%emt 0:04:35]} 26. Bxc3 {[%emt 0:02:20]} Rxc3 {[%emt 0:00:08]} 27. Kd2 {[%emt 0:01:02]} Rc8 {[%emt 0:01:04]} 28. e4 {[%emt 0:01:26]} f6 {[%emt 0:01:22]} 29. a4 {[%emt 0:02:27]} Kf7 {[%emt 0:02:19]} 30. e5 {[%emt 0:03:54]} Rd8 {[%emt 0:02:37]} 31. Ke2 {[%emt 0:01:15]} Ke6 {[%emt 0:01:25]} 32. b4 {[%emt 0:01:43]} Bd4 {[%emt 0:04:07]} 33. gxf6 {[%emt 0:12:40]} gxf6 {[%emt 0:00:26]} 34. exf6 {[%emt 0:01:55]} Kxf6 {[%emt 0:01:13]} 35. Nf4 {[%emt 0:00:58]} Kf5 {[%emt 0:02:32]} 36. Ng2 {[%emt 0:01:00]} Bf6 {[%emt 0:01:58]} 37. Nh2 {[%emt 0:02:01]} Rd4 {[%emt 0:01:44]} 38. Nf3 {[%emt 0:01:33]} Rxb4 {[%emt 0:01:57]} 39. Ne3+ {[%emt 0:00:39]} Ke6 {[%emt 0:02:41]} 40. a5 {[%emt 0:01:25]} Ra4 {[%emt 0:01:03]} 41. Ng2 {[%emt 0:32:21]} Rxa5 {[%emt 0:30:47]} 42. Nf4+ {[%emt 0:01:05]} Kf5 {[%emt 0:00:49]} 43. Nd3 {[%emt 0:00:58]} Ra2+ {[%emt 0:02:02]} 44. Ke3 {[%emt 0:00:18]} Ra3 {[%emt 0:01:31]} 45. Nd4+ {[%emt 0:02:18]} Bxd4+ {[%emt 0:00:16]} 46. Kxd4 {[%emt 0:00:05]} Rxd3+ {[%emt 0:00:10]} 0-1